bitfinex/quotes_ETHUSD_20260304
["timestamp","ask_amount","ask_price","bid_price","bid_amount"]
[1772587116316,3.0186183,1977.0,1976.6,0.6]
[1772587116534,1.15939598,1977.1,1976.6,0.6]
[1772587116832,3.01867939,1977.0,1976.6,0.6]
[1772587117005,1.15939598,1977.1,1976.6,0.6]
[1772587117210,3.01877868,1977.0,1976.7,1.26473415]
[1772587117422,1.15939598,1977.1,1976.7,1.26473415]
[1772587117617,4.17902865,1977.0,1976.7,1.26473415]
[1772587117820,1.15939598,1977.0,1976.7,1.26473415]
[1772587120523,2.86639598,1977.3,1976.7,2.40506485]
[1772587120728,3.02059713,1977.2,1976.7,2.40506485]
[1772587121017,4.17999311,1977.2,1976.7,2.40506485]
[1772587121217,1.15939598,1977.2,1976.7,2.40506485]
[1772587121833,0.001,1976.9,1976.7,2.40506485]
[1772587123353,0.001,1976.9,1976.7,1.26473415]
[1772587123536,1.16039598,1976.9,1976.6,1.86586475]
[1772587123741,1.16039598,1976.9,1976.6,0.0011]
[1772587123917,0.001,1976.9,1976.6,0.0011]
[1772587125652,1.16039598,1976.9,1976.6,1.26589813]
[1772587125855,0.001,1976.9,1976.6,1.26589813]
[1772587126223,1.16039598,1976.9,1976.6,1.26589813]
[1772587126553,1.16039598,1976.9,1976.5,0.0011]
[1772587127357,2.44045055,1976.9,1976.3,0.0011]
[1772587127520,2.44045055,1976.9,1976.1,0.0011]
[1772587127521,1.15939598,1976.3,1976.1,0.0011]
[1772587127718,2.42445012,1976.2,1976.1,0.0011]
[1772587129026,2.42445012,1976.2,1975.1,2.48862681]
[1772587129027,1.16586249,1976.1,1975.1,2.48862681]
[1772587129357,4.25210871,1976.2,1975.2,0.0011]
[1772587129358,1.16586249,1975.7,1975.2,0.0011]
[1772587129557,1.16586249,1975.5,1974.9,1.26588375]
[1772587129761,1.16586249,1975.4,1975.0,0.0011]
[1772587132155,2.87286249,1975.6,1975.0,1.22400135]
[1772587132461,2.43117773,1975.8,1975.1,1.22290135]
[1772587132645,1.16586249,1975.7,1974.9,0.0011]
[1772587133664,1.16586249,1975.3,1974.9,0.0011]
[1772587133957,1.16586249,1975.3,1974.3,3.44181166]
[1772587133958,1.16586249,1975.1,1974.4,1.26620745]
[1772587134330,1.16586249,1975.1,1974.4,1.26730745]
[1772587134649,1.16586249,1975.1,1975.0,0.0011]
[1772587134844,1.16586249,1975.1,1974.4,1.26730745]
[1772587136031,1.16586249,1975.5,1974.4,1.22400135]
[1772587136233,1.16586249,1975.5,1974.8,1.22290135]
[1772587136434,1.16586249,1975.5,1974.4,1.22400135]
[1772587136650,1.16586249,1975.4,1974.5,0.0011]
[1772587137358,1.16586249,1975.4,1974.5,1.22400135]
[1772587139230,1.16586249,1975.3,1974.6,1.2660792]
[1772587139859,1.16586249,1975.3,1974.7,0.0011]
[1772587140362,1.16586249,1975.5,1974.7,1.22400135]
[1772587141160,1.16586249,1975.5,1974.8,2.48885233]
[1772587141339,0.001,1975.6,1974.9,1.22290135]
[1772587141533,0.001,1975.6,1974.9,1.22400135]
[1772587143541,1.16686249,1975.6,1975.0,1.26582278]
[1772587145081,0.001,1975.6,1975.1,1.22290135]
[1772587145377,1.16586249,1976.1,1975.4,1.22290135]
[1772587145570,1.16586249,1976.1,1975.5,0.0011]
[1772587145766,1.16586249,1976.1,1975.5,1.22400135]
[1772587145936,1.16586249,1976.3,1975.5,1.22400135]
[1772587147571,1.16586249,1976.3,1975.6,2.48833969]
[1772587147750,1.16586249,1976.3,1975.7,1.22290135]
[1772587149237,1.16586249,1976.3,1975.6,1.26543834]
[1772587149238,1.16586249,1976.6,1975.9,1.22290135]
[1772587149672,1.16586249,1976.8,1976.1,1.22290135]
[1772587149867,0.001,1976.9,1976.1,1.22290135]
[1772587150170,1.16686249,1976.9,1976.2,0.0011]
[1772587150562,1.16686249,1976.9,1976.2,1.22400135]
[1772587151342,1.16586249,1976.8,1976.2,0.0011]
[1772587153580,1.16586249,1976.7,1976.2,0.0011]
[1772587154976,1.16586249,1976.6,1976.2,0.0011]
[1772587158907,0.001,1976.5,1976.2,0.0011]
[1772587160492,1.22337962,1976.5,1976.2,0.0011]
[1772587162217,1.22337962,1976.5,1976.0,1.14795734]
[1772587163015,5.05947086,1976.9,1976.2,1.14795734]
[1772587163016,0.001,1976.9,1976.2,1.14795734]
[1772587163202,1.22237962,1976.8,1976.3,0.0011]
[1772587163384,1.22237962,1976.8,1976.2,0.0011]
[1772587165113,1.22237962,1976.7,1976.2,0.0011]
[1772587165909,5.0594256,1976.9,1976.2,1.14905734]
[1772587165910,0.001,1976.9,1976.2,1.14905734]
[1772587166105,1.22337962,1976.9,1976.2,1.14905734]
[1772587166301,1.22237962,1976.8,1976.2,0.0011]
[1772587166689,1.22237962,1976.8,1976.1,2.4130755]
[1772587166894,1.22237962,1976.8,1976.2,0.0011]
[1772587167609,1.22237962,1976.8,1976.2,1.14905734]
[1772587167794,0.001,1976.9,1976.2,1.14905734]
[1772587169728,0.001,1976.9,1976.3,2.41294747]
[1772587169940,0.001,1976.9,1976.4,1.14905734]
[1772587170826,0.001,1976.7,1976.4,1.14905734]
[1772587171515,0.001,1976.7,1976.4,0.0011]
[1772587172028,1.22337962,1976.7,1976.4,0.0011]
[1772587177155,1.22237962,1976.6,1976.4,0.0011]
[1772587177351,1.22237962,1976.5,1976.4,0.0011]
[1772587178321,4.25204863,1976.5,1976.4,0.0011]
[1772587178523,3.64052665,1976.9,1976.4,1.14795734]
[1772587178838,1.22337962,1976.9,1976.5,2.41281947]
[1772587179043,1.22337962,1976.9,1976.5,1.26486213]
[1772587179238,1.22337962,1976.9,1976.4,1.26488897]
[1772587180457,1.22337962,1976.9,1976.4,2.41284631]
[1772587180749,1.22337962,1976.9,1976.6,1.26479813]
[1772587181730,0.001,1976.9,1976.6,2.41275547]
[1772587181950,1.22337962,1976.9,1976.6,1.26479813]
[1772587182742,1.22337962,1976.9,1976.5,1.26481063]
[1772587182945,1.22337962,1976.9,1976.5,1.26591063]
[1772587183147,1.22337962,1976.8,1976.5,1.26591063]
[1772587184554,1.22337962,1976.8,1976.5,0.0011]
[1772587184759,1.22237962,1976.7,1976.5,0.0011]
[1772587185688,1.22237962,1976.7,1976.4,0.0011]
[1772587186757,1.26474326,1976.7,1976.4,0.0011]
[1772587187074,1.22237962,1976.6,1976.4,0.0011]
[1772587187361,2.91537962,1976.5,1976.4,0.0011]
[1772587188354,1.22237962,1976.5,1976.4,0.0011]
[1772587188542,2.91437962,1976.5,1976.4,0.0011]
[1772587189484,0.001,1976.8,1976.4,1.21263216]
[1772587189650,1.24821481,1976.8,1976.4,1.21263216]
[1772587190882,1.24721481,1976.7,1976.4,0.0011]
[1772587191062,1.24721481,1976.5,1976.2,0.0011]
[1772587191267,1.24721481,1976.5,1975.8,1.26528437]
[1772587191268,1.24721481,1976.4,1975.8,1.26528437]
[1772587192484,1.24721481,1976.4,1975.9,0.6]
[1772587193994,1.24721481,1976.2,1975.9,0.6]
[1772587195171,1.24721481,1976.2,1976.0,0.0011]
[1772587196487,1.693,1976.3,1976.0,0.0011]
[1772587197906,5.05927846,1976.6,1976.1,1.26511816]
[1772587197907,1.24721481,1976.6,1976.1,1.26511816]
[1772587198077,1.24721481,1976.6,1976.1,2.47665032]
[1772587198277,1.24721481,1976.6,1976.0,1.26624744]
[1772587198477,1.24721481,1976.6,1976.0,2.4777796]
[1772587198979,2.95874373,1976.7,1976.1,1.21153216]
[1772587198980,0.001,1976.7,1976.1,1.21153216]
[1772587199981,1.24821481,1976.7,1976.2,2.4765863]
[1772587200182,1.24821481,1976.7,1976.2,3.0765863]
[1772587200994,1.24821481,1976.7,1976.2,2.4765863]
[1772587201393,0.001,1976.7,1976.3,1.21153216]
[1772587201600,0.001,1976.8,1976.3,1.21153216]
[1772587202277,1.24821481,1976.8,1976.4,2.47645828]
[1772587202482,0.001,1976.8,1976.4,1.21153216]
[1772587202682,1.24821481,1976.8,1976.3,1.2649465]
[1772587202914,1.24821481,1976.8,1976.2,2.47655914]
[1772587203318,1.24821481,1976.8,1976.1,1.26511816]
[1772587203681,1.24821481,1976.8,1976.1,2.47665032]
[1772587204405,1.24721481,1976.6,1976.1,2.47665032]
[1772587205213,1.24721481,1976.6,1976.2,0.6]
[1772587207038,1.24721481,1976.6,1976.2,1.86613899]
[1772587207937,1.24721481,1976.6,1976.2,3.07767115]
[1772587209824,1.24721481,1976.6,1976.2,1.86613899]
[1772587210009,1.24721481,1976.5,1976.2,1.86614654]
[1772587212841,1.24721481,1976.5,1976.2,0.6011]
[1772587213015,1.24721481,1976.4,1976.2,0.0011]
[1772587214521,1.24721481,1976.4,1976.0,0.0011]
[1772587214716,1.24721481,1976.3,1976.0,0.0011]
[1772587217023,0.001,1976.7,1976.0,1.21263216]
[1772587218041,0.001,1976.7,1976.2,1.21153216]
[1772587219630,0.001,1976.6,1976.2,1.21153216]
[1772587220068,1.11416955,1976.3,1976.0,0.0011]
[1772587220233,1.11416955,1976.1,1975.9,0.0011]
[1772587220960,1.11416955,1976.1,1975.8,0.0011]
[1772587221125,1.11416955,1976.1,1975.7,0.0011]
[1772587221126,1.11416955,1975.9,1975.7,0.0011]
[1772587222226,1.2651731,1976.1,1975.7,0.0011]
[1772587222227,1.11416955,1976.1,1975.7,0.0011]
[1772587223561,2.37914577,1976.4,1975.7,1.17748872]
[1772587223854,1.11416955,1976.2,1975.8,0.6]
[1772587224622,2.37928771,1976.1,1975.7,0.0011]
[1772587225046,1.11416955,1976.0,1975.7,0.0011]
[1772587226634,2.80416955,1976.3,1975.7,1.17748872]
[1772587227467,1.11416955,1976.2,1975.7,1.17748872]
[1772587227777,1.11416955,1976.2,1975.7,0.0011]
[1772587228777,1.11416955,1976.0,1975.7,0.0011]
[1772587229373,1.11416955,1976.0,1975.5,0.0011]
[1772587230576,1.26524621,1975.9,1975.5,0.0011]
[1772587230786,2.37941576,1975.9,1975.5,0.0011]
[1772587231269,1.11416955,1975.9,1975.5,0.0011]
[1772587231776,2.80416955,1975.9,1975.5,0.0011]
[1772587232156,2.80416955,1975.9,1975.6,0.0011]
[1772587232976,1.11416955,1975.8,1975.6,0.0011]
[1772587233667,4.06942247,1975.9,1975.6,0.0011]
[1772587233969,1.11416955,1975.8,1975.6,0.0011]
[1772587234358,1.11416955,1975.8,1975.5,0.0011]
[1772587235078,1.11416955,1975.6,1975.5,0.0011]
[1772587238895,2.80416955,1976.1,1975.5,1.17748872]
[1772587239367,1.11416955,1976.1,1975.6,2.44182706]
[1772587239563,1.69,1976.0,1975.6,2.44182706]
[1772587240166,1.69,1976.0,1975.7,1.17638872]
[1772587240361,1.69,1976.0,1975.6,1.26543834]
[1772587241766,1.69,1976.0,1975.6,1.86543834]
[1772587242103,1.69,1976.0,1975.6,0.6]
[1772587242405,2.80416955,1976.0,1975.6,0.6]
[1772587243906,2.80416955,1976.0,1975.6,1.86651954]
[1772587244078,0.001,1975.9,1975.6,0.6011]
[1772587244280,0.001,1975.9,1975.6,1.866529]
[1772587244581,1.11516955,1975.9,1975.6,0.6011]
[1772587245188,1.11516955,1975.9,1975.6,0.0011]
[1772587246390,1.11416955,1975.8,1975.6,0.0011]
[1772587247304,1.11416955,1975.8,1975.5,0.0011]
[1772587248082,2.37952757,1975.8,1975.5,0.0011]
[1772587248309,1.10341379,1975.7,1975.5,0.0011]
[1772587250612,1.10341379,1975.5,1975.4,0.0011]
[1772587250790,1.10341379,1975.4,1975.3,0.0011]
[1772587251990,2.79441379,1975.5,1975.3,0.0011]
[1772587252195,1.10341379,1975.4,1975.3,0.0011]
[1772587253291,2.36898025,1975.4,1975.3,0.0011]
[1772587253616,4.05998025,1975.4,1975.3,0.0011]
[1772587254317,1.10341379,1975.3,1975.1,0.0011]
[1772587254808,1.10341379,1975.2,1975.1,0.0011]
[1772587255404,1.28115986,1975.2,1974.8,0.0011]
[1772587255603,1.26567708,1975.3,1974.0,2.53341038]
[1772587255604,1.10341379,1974.9,1974.0,0.87857099]
[1772587255809,1.10341379,1974.6,1974.0,2.1450237]
[1772587255994,1.10341379,1974.7,1974.1,1.07014347]
[1772587256200,1.692,1974.6,1974.1,1.07014347]
[1772587256394,1.10341379,1974.7,1974.1,1.07014347]
[1772587256599,2.36914395,1975.2,1974.5,1.06894347]
[1772587256914,1.692,1975.1,1974.5,1.06894347]
[1772587258325,2.79541379,1975.1,1974.5,1.06894347]
[1772587258508,1.10341379,1975.0,1974.5,1.06894347]
[1772587258821,1.10341379,1975.0,1974.3,2.33516838]
[1772587258822,1.10341379,1974.8,1974.3,2.33516838]
[1772587259219,1.10341379,1974.8,1974.2,1.26629533]
[1772587260018,1.10341379,1975.0,1974.3,1.06527624]
[1772587260225,1.693,1974.9,1974.3,1.06527624]
[1772587260901,4.06231188,1974.9,1974.4,1.26620745]
[1772587261105,1.10341379,1974.8,1974.4,1.26620745]
[1772587261303,1.10341379,1974.8,1974.1,1.26635125]
[1772587261507,1.10341379,1974.6,1974.0,2.14499899]
[1772587263008,1.10341379,1974.2,1974.0,0.87857099]
[1772587263213,1.26627158,1974.3,1973.0,1.26710593]
[1772587263214,1.10341379,1974.0,1973.0,1.26710593]
[1772587263408,1.10341379,1973.6,1972.7,1.045737]
[1772587263736,1.10341379,1973.2,1972.5,3.77173043]
[1772587263942,1.693,1973.3,1972.7,1.03934253]
[1772587264722,1.10341379,1973.3,1972.7,1.03934253]
[1772587265051,2.79641379,1973.3,1972.7,1.03934253]
[1772587265356,1.10341379,1973.8,1972.8,1.06299892]
[1772587265561,1.10341379,1973.6,1972.8,1.06299892]
[1772587267155,2.37015629,1973.6,1972.9,1.26717015]
[1772587267471,1.10341379,1973.5,1972.9,1.26717015]
[1772587267754,1.10341379,1973.5,1972.9,2.31128341]
[1772587268118,1.10441379,1973.5,1972.9,2.31128341]
[1772587268544,1.10441379,1973.5,1972.9,1.26717015]
[1772587269334,1.10341379,1973.3,1972.8,1.26833438]
[1772587271960,0.001,1973.5,1973.2,1.01972767]
[1772587272258,1.10341379,1973.9,1973.1,1.28115986]
[1772587272429,1.10341379,1973.9,1973.1,1.01872767]
[1772587272430,1.10341379,1973.8,1973.1,1.01872767]
[1772587273933,1.10341379,1973.8,1973.2,1.26697749]
[1772587274131,1.10341379,1973.8,1973.2,2.27385976]
[1772587274336,1.7978968,1974.3,1973.3,1.00688227]
[1772587274337,2.79741379,1974.0,1973.3,1.00688227]
[1772587274538,1.10341379,1973.9,1973.1,1.26699777]
[1772587275159,1.10341379,1973.9,1973.2,1.00102465]
[1772587276133,2.79741379,1973.9,1973.3,1.26691329]
[1772587276765,1.694,1974.2,1973.4,0.98945068]
[1772587276939,1.10341379,1974.1,1973.4,0.98945068]
[1772587278336,2.36982004,1974.1,1973.5,1.26678489]
[1772587278656,0.97320216,1974.0,1973.5,1.26678489]
[1772587280871,0.001,1973.9,1973.5,1.26678489]
[1772587281747,0.001,1973.9,1973.4,2.25625937]
[1772587281748,0.94065894,1973.9,1973.4,2.25625937]
[1772587282449,0.94065894,1973.9,1972.9,5.06765316]
[1772587282777,1.04576062,1973.5,1972.8,1.26832519]
[1772587282982,1.04576062,1973.3,1972.8,0.0011]
[1772587283156,1.04576062,1973.3,1972.8,1.26833297]
[1772587284653,1.694,1973.4,1972.8,0.0011]
[1772587284654,1.04576062,1973.1,1972.8,0.0011]
[1772587284892,1.04576062,1973.1,1972.8,1.2683219]
[1772587285773,0.97133484,1973.8,1972.9,0.20451245]
[1772587286454,0.97133484,1973.8,1972.8,1.2683219]
[1772587286660,1.26665653,1973.7,1972.8,0.0011]
[1772587286861,0.97133484,1973.6,1972.8,0.0011]
[1772587288187,0.97133484,1973.5,1972.8,0.0011]
[1772587288984,0.97133484,1973.4,1972.8,0.0011]
[1772587289758,0.97133484,1973.4,1972.8,0.19160054]
[1772587290087,0.97133484,1973.4,1972.8,0.0011]
[1772587290986,2.23819091,1973.4,1972.8,0.0011]
[1772587291306,0.97133484,1973.3,1972.8,0.0011]
[1772587291997,0.97133484,1973.3,1972.9,0.0011]
[1772587295267,0.97133484,1973.1,1972.9,0.0011]
[1772587295668,0.97133484,1973.1,1972.8,0.0011]
[1772587297685,0.97133484,1973.1,1972.5,1.26847576]
[1772587297686,0.97078484,1972.9,1972.5,0.0011]
[1772587299798,0.97078484,1972.7,1972.5,0.0011]
[1772587301677,0.97078484,1972.6,1972.5,0.0011]
[1772587302079,0.97078484,1973.2,1972.5,0.14112689]
[1772587302295,0.97078484,1973.2,1972.5,0.0011]
[1772587303793,0.97078484,1973.2,1972.6,0.0011]
[1772587303794,0.97078484,1973.0,1972.6,0.0011]
[1772587303978,0.97078484,1972.8,1972.6,0.0011]
[1772587304792,0.97078484,1972.7,1971.8,1.39566327]
[1772587305879,0.97023484,1972.5,1971.8,1.39566327]
[1772587306102,0.97023484,1972.5,1971.9,0.12501647]
[1772587306318,2.67523484,1972.7,1971.9,0.12501647]
[1772587306808,0.97023484,1972.9,1971.9,0.12501647]
[1772587307196,1.26800941,1973.2,1971.8,1.26784015]
[1772587307197,0.97023484,1973.1,1972.3,0.12104006]
[1772587308016,2.23728262,1973.1,1972.4,1.38457926]
[1772587308507,0.97023484,1973.1,1972.4,1.38457926]
[1772587308803,1.26705317,1973.1,1972.4,1.38457926]
[1772587308982,0.97716607,1973.0,1972.4,1.38457926]
[1772587309182,0.97716607,1973.0,1972.3,1.37857686]
[1772587309803,0.97716607,1973.0,1972.4,0.10719642]
[1772587310103,1.706,1973.1,1972.5,1.37462354]
[1772587310313,0.97716607,1973.1,1972.5,1.37462354]
[1772587311789,0.97716607,1973.1,1972.4,1.2674653]
[1772587312716,0.97716607,1972.9,1972.4,1.2674653]
[1772587313808,0.97716607,1973.1,1972.4,1.2674653]
[1772587314012,2.68416607,1973.1,1972.5,0.09198713]
[1772587314722,0.97716607,1973.0,1972.6,1.26736287]
[1772587314930,1.707,1973.1,1972.6,1.26736287]
[1772587315089,0.97816607,1973.2,1972.6,1.26736287]
[1772587315288,0.97816607,1973.2,1972.7,0.08825052]
[1772587315921,0.97816607,1973.2,1972.6,1.26736287]
[1772587315922,0.97716607,1973.1,1972.6,1.26736287]
[1772587316127,0.97716607,1973.1,1972.5,1.26737682]
[1772587316288,1.26797762,1973.2,1971.7,2.23938419]
[1772587316289,0.97716607,1972.7,1971.7,2.23938419]
[1772587316484,0.97716607,1972.5,1972.3,0.0011]
[1772587316988,2.24460212,1972.5,1972.3,0.0011]
[1772587317427,0.97716607,1972.4,1972.3,0.0011]
[1772587319556,0.97716607,1972.4,1971.5,5.07225492]
[1772587319557,0.97716607,1972.3,1971.5,1.26806504]
[1772587319860,5.06996552,1972.7,1971.5,0.97144282]
[1772587319861,0.97716607,1972.7,1971.5,0.97144282]
[1772587320452,6.7761945,1972.8,1971.8,0.97144282]
[1772587320453,1.707,1972.8,1971.8,0.97144282]
[1772587320653,0.97816607,1972.9,1971.8,0.97144282]
[1772587321027,0.001,1972.9,1971.8,0.97144282]
[1772587321542,0.001,1973.2,1972.4,0.97144282]
[1772587322464,0.001,1973.2,1972.1,3.73082431]
[1772587322465,0.97716607,1973.1,1972.1,1.26768419]
[1772587322632,0.97716607,1972.8,1972.0,1.26773539]
[1772587323572,0.97716607,1972.6,1971.8,1.26783911]
[1772587323757,0.97716607,1972.6,1971.6,1.26797617]
[1772587324331,0.97716607,1972.6,1971.5,2.23948247]
[1772587324529,0.97716607,1972.5,1971.2,2.2396782]
[1772587324737,0.97716607,1972.2,1971.2,2.2396782]
[1772587324935,0.97716607,1972.1,1971.2,2.2396782]
[1772587326263,0.97716607,1971.9,1971.2,2.2396782]
[1772587326959,0.97716607,1971.9,1971.1,5.07309876]
[1772587326960,0.97716607,1971.9,1971.1,1.26828405]
[1772587327981,0.97716607,1971.9,1970.7,6.04572073]
[1772587328160,0.97716607,1971.7,1970.7,6.04572073]
[1772587328744,0.97716607,1971.7,1971.2,0.0011]
[1772587330047,2.95682067,1971.9,1971.2,0.0011]
[1772587330282,3.93398674,1971.9,1971.2,0.0011]
[1772587330448,0.97716607,1971.8,1971.2,0.0011]
[1772587332048,1.26794137,1971.7,1971.2,0.0011]
[1772587332347,0.97716607,1971.6,1971.2,0.0011]
[1772587334266,0.97716607,1971.4,1971.2,0.0011]
[1772587334773,0.97716607,1971.4,1971.0,0.0011]
[1772587335654,1.26804651,1971.6,1971.0,0.0011]
[1772587335998,6.04908014,1971.7,1971.0,0.97254282]
[1772587335999,2.24515188,1971.7,1971.0,0.97254282]
[1772587336593,2.24515188,1971.7,1971.1,1.26832732]
[1772587336883,0.97716607,1971.6,1971.1,1.26832732]
[1772587337056,0.97716607,1971.6,1971.0,1.26948736]
[1772587337776,1.26798581,1971.7,1971.0,0.0011]
[1772587337777,0.97716607,1971.4,1971.0,0.0011]
[1772587337976,0.97716607,1971.2,1970.4,2.24018063]
[1772587338153,2.67716607,1971.2,1970.4,2.24018063]
[1772587338878,2.20687512,1971.1,1970.4,2.24018063]
[1772587340783,2.20687512,1971.1,1971.0,0.0011]
[1772587341480,5.07254214,1971.4,1971.0,0.0011]
[1772587341481,0.92495611,1971.4,1971.0,0.0011]
[1772587341671,2.19296262,1971.6,1971.0,0.0011]
[1772587341992,0.92495611,1971.6,1971.0,0.0011]
[1772587342865,2.1929658,1971.6,1971.0,0.0011]
[1772587343496,0.92495611,1971.5,1971.0,0.0011]
[1772587344367,0.92495611,1971.4,1971.0,0.0011]
[1772587344567,0.92495611,1971.4,1970.8,0.0011]
[1772587345070,0.92495611,1971.4,1970.8,1.26961813]
[1772587345270,2.19315476,1971.3,1970.8,0.0011]
[1772587345874,0.92495611,1971.8,1970.9,0.99505929]
[1772587346260,0.92495611,1971.7,1970.9,0.99505929]
[1772587346471,0.92495611,1971.7,1970.8,0.0011]
[1772587346670,0.92495611,1971.5,1970.8,0.0011]
[1772587347399,2.19309043,1971.4,1970.8,0.0011]
[1772587347691,2.63095611,1971.6,1970.8,0.99615929]
[1772587347886,0.92495611,1971.6,1970.8,0.99615929]
[1772587349088,2.19280294,1971.9,1970.8,0.99615929]
[1772587349670,1.26784683,1971.9,1971.0,0.99505929]
[1772587349999,0.92495611,1971.8,1971.0,0.99505929]
[1772587350700,1.28750456,1972.0,1971.0,0.99505929]
[1772587351008,0.92495611,1971.9,1971.0,0.99505929]
[1772587352494,2.97475336,1972.0,1971.2,0.99505929]
[1772587352996,3.89970947,1972.0,1971.2,0.99505929]
[1772587353391,0.001,1971.8,1971.2,0.99505929]
[1772587354592,0.001,1971.8,1971.4,0.99505929]
[1772587355392,2.19235124,1972.6,1971.6,0.99505929]
[1772587355593,0.92495611,1972.5,1971.6,0.99505929]
[1772587356500,0.92495611,1972.5,1971.8,0.99505929]
[1772587356901,1.00569562,1972.7,1971.8,0.99505929]
[1772587357212,0.001,1972.8,1972.0,0.99505929]
[1772587357418,0.001,1972.8,1972.2,0.99505929]
[1772587358814,0.001,1972.8,1972.4,0.99505929]
[1772587360323,0.92595611,1972.8,1972.3,1.32014394]
[1772587362431,0.001,1972.8,1972.3,2.31520323]
[1772587362635,0.001,1972.8,1972.4,0.99505929]
[1772587362931,0.001,1972.8,1972.5,1.26742712]
[1772587363639,0.92595611,1973.2,1972.6,0.99505929]
[1772587364138,2.19293361,1973.2,1972.5,2.26248641]
[1772587364511,0.92595611,1973.2,1972.5,2.26248641]
[1772587364833,0.92595611,1973.2,1972.8,0.99505929]
[1772587364834,0.001,1973.2,1972.8,0.99505929]
[1772587365349,1.26659307,1973.8,1973.1,0.99505929]
[1772587365632,0.92495611,1973.7,1972.8,0.99505929]
[1772587366933,0.92495611,1973.7,1973.0,0.99505929]
[1772587367140,1.26753441,1973.9,1973.0,0.99505929]
[1772587367307,2.19249052,1973.9,1973.0,0.99505929]
[1772587367909,0.92595611,1973.9,1973.2,0.99505929]
[1772587368807,0.001,1973.9,1973.2,0.99505929]
[1772587369207,0.001,1973.9,1973.3,2.19381577]
[1772587369839,1.28750456,1974.4,1973.3,2.19381577]
[1772587369840,0.94687567,1974.5,1973.6,0.92690248]
[1772587371928,0.94687567,1974.5,1973.8,0.92690248]
[1772587372123,0.56048513,1974.6,1973.8,0.92690248]
[1772587372423,0.94687567,1974.7,1973.8,0.92690248]
[1772587374040,0.94687567,1974.7,1974.0,0.92690248]
[1772587375745,0.94687567,1974.6,1973.8,1.26654425]
[1772587376335,2.21301899,1974.5,1973.6,5.99327191]
[1772587376731,0.94687567,1974.5,1973.7,0.92690248]
[1772587376917,0.94687567,1974.7,1973.9,2.21440704]
[1772587377419,0.94687567,1974.7,1974.0,0.92690248]
[1772587378643,0.94687567,1974.7,1974.1,1.26639987]
[1772587378841,0.001,1974.6,1974.1,1.26639987]
[1772587379019,0.001,1974.6,1974.1,2.19330235]
[1772587379541,0.001,1974.6,1974.2,0.92690248]
[1772587379840,1.26577695,1975.1,1974.2,0.92690248]
[1772587380039,15.40212508,1975.9,1974.6,0.92690248]
[1772587380040,2.2133515,1975.6,1974.6,0.92690248]
[1772587380249,2.2133515,1975.6,1974.8,0.92690248]
[1772587380250,0.94787567,1975.6,1974.8,0.92690248]
[1772587380450,0.94787567,1975.6,1974.3,1.763]
[1772587380451,0.94787567,1975.6,1974.9,1.28750456]
[1772587380615,0.94787567,1975.6,1975.0,1.26582278]
[1772587380616,0.001,1975.6,1975.0,1.26582278]
[1772587381056,0.94787567,1975.6,1975.0,1.26582278]
[1772587381618,0.001,1975.6,1975.2,2.21440704]
[1772587382017,0.94787567,1975.9,1975.4,1.28750456]
[1772587382018,0.001,1975.9,1975.4,1.28750456]
[1772587382224,0.001,1975.9,1975.4,2.21440704]
[1772587382436,2.21312814,1975.9,1975.1,0.92690248]
[1772587382644,2.21312814,1975.9,1974.9,6.82529113]
[1772587382645,0.94687567,1975.7,1974.9,5.0633135]
[1772587383019,0.94687567,1975.7,1974.5,0.92690248]
[1772587383323,0.94687567,1975.1,1974.2,1.26628868]
[1772587384747,2.21267978,1975.1,1974.2,1.26628868]
[1772587385637,0.94687567,1975.0,1973.7,1.762]
[1772587385964,0.94687567,1975.0,1973.7,1.26660685]
[1772587385965,0.94687567,1974.6,1973.7,1.26660685]
[1772587386328,0.94687567,1974.4,1973.6,3.1036857]
[1772587386529,0.94687567,1974.4,1973.6,4.37039604]
[1772587386729,2.21314725,1974.3,1973.6,4.37039604]
[1772587387036,0.94687567,1974.3,1973.6,4.37039604]
[1772587387355,1.26615526,1974.5,1973.6,5.6579006]
[1772587387527,2.21303093,1974.5,1973.6,5.6579006]
[1772587387723,0.94687567,1974.5,1973.6,6.58480308]
[1772587387924,2.21286301,1974.8,1973.8,2.21440704]
[1772587388740,0.94687567,1974.7,1973.9,1.26652819]
[1772587388937,0.94687567,1974.7,1973.7,1.2666259]
[1772587388938,0.94687567,1974.6,1973.7,1.2666259]
[1772587389446,0.94687567,1974.6,1973.6,4.3703572]
[1772587390856,0.94687567,1974.4,1973.6,4.3703572]
[1772587391428,0.94687567,1974.4,1973.9,0.0011]
[1772587393695,0.94687567,1974.2,1973.9,0.0011]
[1772587395386,0.94687567,1974.2,1973.8,0.0011]
[1772587395702,0.94687567,1974.2,1973.4,1.26791751]
[1772587395703,0.94687567,1973.9,1973.4,0.0011]
[1772587395876,0.94687567,1973.8,1973.4,0.0011]
[1772587396293,0.94687567,1973.6,1973.4,0.0011]
[1772587396505,2.58296038,1973.9,1973.4,0.0011]
[1772587396811,2.2133397,1974.0,1973.4,0.0011]
[1772587397399,0.94687567,1973.9,1973.4,0.0011]
[1772587398882,2.13750909,1974.2,1973.4,0.0011]
[1772587399083,0.87112329,1974.1,1973.4,0.0011]
[1772587400090,0.8539178,1973.9,1973.4,0.0011]
[1772587402110,2.12049879,1973.9,1973.4,0.0011]
[1772587402315,0.8539178,1974.2,1973.4,0.0011]
[1772587403921,2.5389178,1974.1,1973.4,0.0011]
[1772587404219,2.95131343,1974.3,1973.4,0.91333629]
[1772587404514,0.001,1974.0,1973.5,0.0011]
[1772587405117,0.001,1974.0,1973.5,0.91333629]
[1772587405908,0.001,1974.0,1973.6,0.6]
[1772587406107,2.11984477,1974.9,1973.9,1.26652819]
[1772587406419,0.8539178,1974.8,1973.9,2.17876448]
[1772587406720,1.674,1975.0,1974.0,0.91223629]
[1772587407022,0.8539178,1975.1,1974.2,0.91223629]
[1772587407800,0.8539178,1975.0,1974.1,2.47643535]
[1772587408205,0.8539178,1974.9,1974.2,1.26633573]
[1772587410618,0.8539178,1974.7,1974.1,1.26635152]
[1772587411223,2.11984899,1974.9,1974.1,1.26635152]
[1772587411406,0.8539178,1974.8,1974.1,1.26635152]
[1772587412527,5.0630247,1975.3,1974.1,0.9043739]
[1772587412528,0.8539178,1975.2,1974.1,0.9043739]
[1772587412696,0.8539178,1975.1,1974.1,0.9043739]
[1772587413028,0.8539178,1975.1,1974.3,0.9043739]
[1772587415531,2.11967651,1975.1,1974.4,1.26620745]
[1772587415726,0.8539178,1975.1,1974.4,1.26620745]
[1772587415923,2.11952738,1975.4,1974.5,0.89887186]
[1772587416122,0.8539178,1975.4,1974.5,0.89887186]
[1772587416602,0.001,1975.0,1974.5,0.89887186]
[1772587416798,0.8539178,1974.9,1974.2,1.26633573]